Workbook

Sheet NSU
B1: Silja Kantanen | E1: 10.1.2000 Jyväskylä
B2: SUPERPESIS | E2: Runkosarja | I2: Kärkilyönnit (KL), pesänvälit | P2: Ylempi loppusarja | U2: Alempi loppusarja | AB2: Arvo-ottelut ja mitalit
B3: Vuosi | C3: Sija | D3: Seura | E3: OTT | F3: KUN | G3: LÖI | H3: TOI | I3: KL | J3: 0 > 1 | K3: 1 > 2 | L3: 2 > 3 | M3: 3 > k | N3: KL-% | P3: OTT | Q3: KUN | R3: LÖI | S3: TOI | T3: KL | U3: OTT | V3: KUN | W3: LÖI | X3: TOI | Y3: KL | Z3: IL | AA3: LL | AB3: Halli | AC3: K | AD3: H | AE3: P
B4: 2016 | C4: 3. | D4: Kirittäret 2 | F4: suomensarja
B5: 2017 | C5: 3. | D5: Kirittäret 2 | F5: suomensarja
B6: 2018 | C6: 2. | D6: Kirittäret 2 | F6: suomensarja
B7: 2018 | C7: 1. | D7: Kirittäret | E7: 4 | F7: 0 | G7: 4 | H7: 1 | I7: 8 | J7: 0 | K7: 1 | L7: 3 | M7: 4 | N7: 38.1 % | O7: 21 | P7: 2 | Q7: 0 | R7: 2 | S7: 0 | T7: 3 | AC7: 1
B8: 2019 | C8: 3. | D8: Kirittäret 2 | F8: suomensarja
B9: 2019 | C9: 1. | D9: Kirittäret | E9: 2 | F9: 0 | G9: 0 | H9: 0 | I9: 0 | J9: 0 | K9: 0 | L9: 0 | M9: 0 | N9: 0.0 % | O9: 11 | AC9: 1
B10: 2019 | C10: 11. | D10: LaVe | E10: 12 | F10: 0 | G10: 1 | H10: 1 | I10: 25 | J10: 11 | K10: 5 | L10: 8 | M10: 1 | N10: =PRODUCT(I10/O10) -> 40.3 % | O10: 62
B11: 2020 | C11: 1. | D11: Kirittäret 2 | F11: suomensarja
B12: 2021 | C12: 4. | D12: Kirittäret 3 | F12: suomensarja
B13: 2021 | C13: 5. | D13: Kirittäret 2 | F13: ykköspesis
B14: Yhteensä | E14: =SUM(E4:E13) -> 18 | F14: 0 | G14: 5 | H14: 2 | I14: 33 | J14: 11 | K14: 6 | L14: 11 | M14: 5 | N14: =PRODUCT(I14/O14) -> 35.1 % | O14: =SUM(O4:O13) -> 94 | P14: 2 | Q14: 0 | R14: 2 | S14: 0 | T14: 3 | U14: 0 | V14: 0 | W14: 0 | X14: 0 | Y14: 0 | Z14: 0 | AA14: 0 | AB14: 0 | AC14: 2 | AD14: 0 | AE14: 0
B15: Pesispörssi | D15: =SUM(F14:H14)+((I14-F14-G14)/3)+(E14/3)+(Z14*25)+(AA14*25)+(AB14*10)+(AC14*25)+(AD14*20)+(AE14*15)-25-25 -> 22.3
B17: URA SUPERISSA | E17: OTT | F17: KUN | G17: LÖI | H17: TOI | I17: KL | K17: ka/L | L17: ka/T | M17: ka/KL | N17: K - % | P17: ENSIMMÄISET
B18: Runkosarja | E18: =PRODUCT(E14) -> 18 | F18: =PRODUCT(F14) -> 0 | G18: =PRODUCT(G14) -> 5 | H18: =PRODUCT(H14) -> 2 | I18: =PRODUCT(I14) -> 33 | K18: =PRODUCT((F18+G18)/E18) -> 0.28 | L18: =PRODUCT(H18/E18) -> 0.11 | M18: =PRODUCT(I18/E18) -> 1.83 | N18: =PRODUCT(N14) -> 35.1 % | O18: =PRODUCT(O14) -> 94 | P18: Ottelu | R18: 25.07. 2018 Kirittäret - KeKi 2-0 (4-2, 13-1) | AA18: 1. ottelu | AC18: 18 v 6 kk 15 pv
B19: Ylempi loppusarja | E19: =SUM(P14) -> 2 | F19: =SUM(Q14) -> 0 | G19: =SUM(R14) -> 2 | H19: =SUM(S14) -> 0 | I19: =SUM(T14) -> 3 | K19: =PRODUCT((F19+G19)/E19) -> 1.00 | L19: =PRODUCT(H19/E19) -> 0.00 | M19: =PRODUCT(I19/E19) -> 1.50 | N19: =PRODUCT(I19/O19) -> 27.3 % | O19: 11 | P19: Lyöty | R19: 25.07. 2018 Kirittäret - KeKi 2-0 (4-2, 13-1) | AA19: 1. ottelu | AC19: 18 v 6 kk 15 pv
B20: Alempi loppusarja | P20: Tuotu | R20: 27.07. 2018 SMJ - Kirittäret 0-2 (1-6, 5-19) | AA20: 2. ottelu | AC20: 18 v 6 kk 17 pv
B21: KAIKKI | E21: =SUM(E18:E20) -> 20 | F21: =SUM(F18:F20) -> 0 | G21: =SUM(G18:G20) -> 7 | H21: =SUM(H18:H20) -> 2 | I21: =SUM(I18:I20) -> 36 | K21: =PRODUCT((F21+G21)/E21) -> 0.35 | L21: =PRODUCT(H21/E21) -> 0.10 | M21: =PRODUCT(I21/E21) -> 1.80 | N21: =PRODUCT(I21/O21) -> 34.3 % | O21: =SUM(O18:O20) -> 105 | P21: Kunnari
B23: Seurat | D23: Kirittäret = Jyväskylän Kirittäret (2004), kasvattajaseura
D24: LaVe = Lappajärven Veikot (1911)

Sheet NYP,NSS
B1: Silja Kantanen | E1: 10.1.2000 Jyväskylä
B2: YKKÖSPESIS | E2: Runkosarja | L2: Runkosarja TOP-10 | Q2: Jatkosarjat | X2: SUOMENSARJA | AA2: Runkosarja | AH2: Runkosarja TOP-10 | AM2: Jatkosarjat
B3: Vuosi | C3: Sija | D3: Seura | E3: OTT | F3: KUN | G3: LÖI | H3: TOI | I3: KL | J3: KL-% | L3: LÖI | M3: TOI | N3: L+T | O3: KL | Q3: OTT | R3: KUN | S3: LÖI | T3: TOI | U3: KL | V3: KL-% | X3: Vuosi | Y3: Sija | Z3: Seura | AA3: OTT | AB3: KUN | AC3: LÖI | AD3: TOI | AE3: KL | AF3: KL-% | AH3: LÖI | AI3: TOI | AJ3: L+T | AK3: KL | AM3: OTT | AN3: KUN | AO3: LÖI | AP3: TOI | AQ3: KL | AR3: KL-%
X4: 2016 | Y4: 3. | Z4: Kirittäret 2 | AA4: 13 | AB4: 1 | AC4: 25 | AD4: 10 | AE4: 61 | AF4: 63.5 % | AG4: 96 | AM4: 2 | AN4: 0 | AO4: 1 | AP4: 0 | AQ4: 4 | AR4: 36.4 % | AS4: 11
X5: 2017 | Y5: 3. | Z5: Kirittäret 2 | AA5: 16 | AB5: 0 | AC5: 29 | AD5: 6 | AE5: 64 | AF5: 57.7 % | AG5: 111 | AM5: 4 | AN5: 0 | AO5: 5 | AP5: 1 | AQ5: 12 | AR5: 40.0 % | AS5: 30
X6: 2018 | Y6: 2. | Z6: Kirittäret 2 | AA6: 11 | AB6: 0 | AC6: 19 | AD6: 11 | AE6: 51 | AF6: 53.1 % | AG6: 96 | AM6: 2 | AN6: 0 | AO6: 3 | AP6: 1 | AQ6: 9 | AR6: 69.2 % | AS6: 13
X7: 2019 | Y7: 3. | Z7: Kirittäret 2 | AA7: 7 | AB7: 4 | AC7: 22 | AD7: 5 | AE7: 44 | AF7: 71.0 % | AG7: 62 | AH7: 10. | AM7: 4 | AN7: 1 | AO7: 15 | AP7: 4 | AQ7: 29 | AR7: 80.6 % | AS7: 36
X8: 2020 | Y8: 1. | Z8: Kirittäret 2 | AA8: 8 | AB8: 3 | AC8: 42 | AD8: 12 | AE8: 70 | AF8: 86.4 % | AG8: 81 | AH8: 1. | AJ8: 1. | AK8: 1.
B9: 2021 | C9: 5. | D9: Kirittäret 2 | E9: 6 | F9: 0 | G9: 6 | H9: 0 | I9: 14 | J9: 42.4 % | K9: =PRODUCT(I9/J9) -> 33 | X9: 2021 | Y9: 4. | Z9: Kirittäret 3 | AA9: 3 | AB9: 0 | AC9: 0 | AD9: 1 | AE9: 13 | AF9: 59.1 % | AG9: 22
B11: YHTEENSÄ | E11: =SUM(E4:E10) -> 6 | F11: =SUM(F4:F10) -> 0 | G11: =SUM(G4:G10) -> 6 | H11: =SUM(H4:H10) -> 0 | I11: =SUM(I4:I10) -> 14 | J11: =PRODUCT(I11/K11) -> 42.4 % | K11: =SUM(K4:K10) -> 33.00330033 | Q11: =SUM(Q4:Q10) -> 0 | R11: =SUM(R4:R10) -> 0 | S11: =SUM(S4:S10) -> 0 | T11: =SUM(T4:T10) -> 0 | U11: =SUM(U4:U10) -> 0 | V11: 0.0 % | W11: =SUM(W4:W10) -> 0 | X11: YHTEENSÄ | AA11: =SUM(AA4:AA10) -> 58 | AB11: =SUM(AB4:AB10) -> 8 | AC11: =SUM(AC4:AC10) -> 137 | AD11: =SUM(AD4:AD10) -> 45 | AE11: =SUM(AE4:AE10) -> 303 | AF11: =PRODUCT(AE11/AG11) -> 64.7 % | AG11: =SUM(AG4:AG10) -> 468 | AM11: =SUM(AM4:AM10) -> 12 | AN11: =SUM(AN4:AN10) -> 1 | AO11: =SUM(AO4:AO10) -> 24 | AP11: =SUM(AP4:AP10) -> 6 | AQ11: =SUM(AQ4:AQ10) -> 54 | AR11: =PRODUCT(AQ11/AS11) -> 60.0 % | AS11: =SUM(AS4:AS10) -> 90
B13: KAIKKI OTTELUT | E13: OTT | F13: KUN | G13: LÖI | H13: TOI | I13: KL | J13: KL-% | L13: ka/L | M13: ka/T | N13: ka/l+t | O13: ka/kl | R13: Seurat | T13: Kirittäret = Jyväskylän Kirittäret (2004), kasvattajaseura
B14: SUPERPESIS | E14: 20 | F14: 0 | G14: 7 | H14: 2 | I14: 36 | J14: 34.3 % | K14: =PRODUCT(I14/J14) -> 104.9562682 | L14: =PRODUCT((F14+G14)/E14) -> 0.35 | M14: =PRODUCT(H14/E14) -> 0.10 | N14: =PRODUCT((F14+G14+H14)/E14) -> 0.45 | O14: =PRODUCT(I14/E14) -> 1.80
B15: YKKÖSPESIS | E15: =PRODUCT(E11+Q11) -> 6 | F15: =PRODUCT(F11+R11) -> 0 | G15: =PRODUCT(G11+S11) -> 6 | H15: =PRODUCT(H11+T11) -> 0 | I15: =PRODUCT(I11+U11) -> 14 | J15: =PRODUCT(I15/K15) -> 42.4 % | K15: =PRODUCT(K11+W11) -> 33.00330033 | L15: =PRODUCT((F15+G15)/E15) -> 1.00 | M15: =PRODUCT(H15/E15) -> 0.00 | N15: =PRODUCT((F15+G15+H15)/E15) -> 1.00 | O15: =PRODUCT(I15/E15) -> 2.33
B16: SUOMENSARJA | E16: =PRODUCT(AA11+AM11) -> 70 | F16: =PRODUCT(AB11+AN11) -> 9 | G16: =PRODUCT(AC11+AO11) -> 161 | H16: =PRODUCT(AD11+AP11) -> 51 | I16: =PRODUCT(AE11+AQ11) -> 357 | J16: =PRODUCT(I16/K16) -> 64.0 % | K16: =PRODUCT(AG11+AS11) -> 558 | L16: =PRODUCT((F16+G16)/E16) -> 2.43 | M16: =PRODUCT(H16/E16) -> 0.73 | N16: =PRODUCT((F16+G16+H16)/E16) -> 3.16 | O16: =PRODUCT(I16/E16) -> 5.10
B17: YHTEENSÄ | E17: =SUM(E14:E16) -> 96 | F17: =SUM(F14:F16) -> 9 | G17: 174 | H17: 53 | I17: 407 | J17: =PRODUCT(I17/K17) -> 58.5 % | K17: =SUM(K14:K16) -> 695.9595686 | L17: =PRODUCT((F17+G17)/E17) -> 1.91 | M17: =PRODUCT(H17/E17) -> 0.55 | N17: =PRODUCT((F17+G17+H17)/E17) -> 2.46 | O17: =PRODUCT(I17/E17) -> 4.24
